fUSD/lending_fUSD_20250720
["ID","MTS","AMOUNT","RATE_DAILY","PERIOD"]
[373393545,1752983468880,-480.0,0.00019616,2]
[373393546,1752983468890,-495.68,0.00019616,2]
[373393547,1752983468901,-480.0,0.00019616,2]
[373393548,1752983468910,-480.0,0.00019616,2]
[373393549,1752983468921,-480.0,0.00019616,2]
[373393550,1752983468931,-480.0,0.00019616,2]
[373393551,1752983468941,-480.0,0.00019616,2]
[373393552,1752983468950,-480.0,0.00019616,2]
[373393553,1752983468960,-480.0,0.00019616,2]
[373393554,1752983468971,-620.0,0.00019616,2]
[373393555,1752983468980,-480.0,0.00019616,2]
[373393556,1752983468989,-1715.52,0.00019616,2]
[373393557,1752983468998,-877.24,0.00019616,2]
[373393558,1752983469007,-480.0,0.00019616,2]
[373393559,1752983469017,-480.0,0.00019616,2]
[373393560,1752983469026,-480.0,0.00019616,2]
[373393561,1752983469035,-480.0,0.00019616,2]
[373393562,1752983469045,-480.0,0.00019616,2]
[373393563,1752983469055,-480.0,0.00019616,2]
[373393564,1752983469063,-480.0,0.00019616,2]
[373393565,1752983469072,-749.25,0.00019616,2]
[373393566,1752983469082,-480.0,0.00019616,2]
[373393567,1752983469091,-480.0,0.00019616,2]
[373393568,1752983469102,-480.0,0.00019616,2]
[373393569,1752983469111,-670.57,0.00019616,2]
[373393570,1752983469120,-541.28,0.00019616,2]
[373393571,1752983469129,-769.19,0.00019616,2]
[373393572,1752983469139,-634.92,0.00019616,2]
[373393573,1752983469149,-480.0,0.00019616,2]
[373393574,1752983469158,-480.0,0.00019616,2]
[373393575,1752983469167,-480.0,0.00019616,2]
[373393576,1752983469177,-1354.22,0.00019616,2]
[373393577,1752983469186,-1092.47,0.00019616,2]
[373393578,1752983469196,-480.0,0.00019616,2]
[373393579,1752983469205,-480.0,0.00019616,2]
[373393580,1752983469214,-480.0,0.00019616,2]
[373393581,1752983469224,-480.0,0.00019616,2]
[373393582,1752983469233,-480.0,0.00019616,2]
[373393583,1752983469243,-343.06988832,0.00019616,2]
[373393584,1752983469251,-480.0,0.00019616,2]
[373393585,1752983469260,-717.34,0.00019616,2]
[373393586,1752983469270,-599.74,0.00019616,2]
[373393587,1752983469279,-840.34,0.00019616,2]
[373393588,1752983469288,-480.0,0.00019616,2]
[373393589,1752983469297,-2426.64,0.00019616,2]
[373393590,1752983469306,-616.16,0.00019616,2]
[373393591,1752983469316,-722.53,0.00019616,2]
[373393592,1752983469325,-598.54,0.00019616,2]
[373393593,1752983469334,-480.0,0.00019616,2]
[373393594,1752983469343,-480.0,0.00019616,2]
[373393595,1752983469353,-533.94321968,0.00019616,2]
[373393596,1752983469362,-861.79,0.00019616,2]
[373393597,1752983469371,-471.17386184,0.00019616,2]
[373393598,1752983469380,-586.0,0.00019616,2]
[373393599,1752983469389,-480.0,0.00019616,2]
[373393600,1752983469398,-480.0,0.00019616,2]
[373393601,1752983469407,-480.0,0.00019616,2]
[373393602,1752983469416,-480.0,0.00019616,2]
[373393603,1752983469426,-480.0,0.00019616,2]
[373393604,1752983469436,-2497.32,0.00019616,2]
[373393605,1752983469445,-535.24,0.00019616,2]
[373393606,1752983469457,-480.0,0.00019616,2]
[373393607,1752983469468,-480.0,0.00019616,2]
[373393608,1752983469477,-480.0,0.00019616,2]
[373393609,1752983469486,-480.0,0.00019616,2]
[373393610,1752983469495,-557.5,0.00019616,2]
[373393611,1752983469504,-907.84,0.00019616,2]
[373393612,1752983469513,-480.0,0.00019616,2]
[373393613,1752983469522,-480.0,0.00019616,2]
[373393614,1752983469530,-480.0,0.00019616,2]
[373393615,1752983469540,-865.51,0.00019616,2]
[373393616,1752983469550,-480.0,0.00019616,2]
[373393617,1752983469559,-480.0,0.00019616,2]
[373393618,1752983469567,-480.0,0.00019616,2]
[373393619,1752983469576,-3620.19,0.00019616,2]
[373393620,1752983469585,-480.0,0.00019616,2]
[373393621,1752983469595,-480.0,0.00019616,2]
[373393622,1752983469604,-480.0,0.00019616,2]
[373393623,1752983469613,-480.0,0.00019616,2]
[373393624,1752983469623,-493.56545419,0.00019616,2]
[373393625,1752983469632,-480.0,0.00019616,2]
[373393626,1752983469641,-480.0,0.00019616,2]
[373393627,1752983469651,-560.23,0.00019616,2]
[373393628,1752983469661,-603.48,0.00019616,2]
[373393629,1752983469671,-480.0,0.00019616,2]
[373393630,1752983469680,-416.67205805,0.00019616,2]
[373393631,1752983469689,-480.0,0.00019616,2]
[373393632,1752983469699,-480.0,0.00019616,2]
[373393633,1752983469708,-480.0,0.00019616,2]
[373393634,1752983469718,-1069.69,0.00019616,2]
[373393635,1752983469730,-480.0,0.00019616,2]
[373393636,1752983469740,-480.0,0.00019616,2]
[373393637,1752983469750,-480.0,0.00019616,2]
[373393638,1752983469760,-480.0,0.00019616,2]
[373393639,1752983469769,-480.0,0.00019616,2]
[373393640,1752983469780,-480.0,0.00019616,2]
[373393641,1752983469791,-729.23,0.00019616,2]
[373393642,1752983469801,-480.0,0.00019616,2]
[373393643,1752983469812,-1171.35,0.00019616,2]
[373393644,1752983469823,-480.0,0.00019616,2]
[373393645,1752983469833,-622.42,0.00019616,2]
[373393646,1752983469843,-576.89,0.00019616,2]
[373393647,1752983469854,-612.71,0.00019616,2]
[373393648,1752983469864,-1058.61,0.00019616,2]
[373393649,1752983469874,-366.1735244,0.00019616,2]
[373393650,1752983469884,-480.0,0.00019616,2]
[373393651,1752983469894,-569.98,0.00019616,2]
[373393652,1752983469904,-480.0,0.00019616,2]
[373393653,1752983469913,-665.25,0.00019616,2]
[373393654,1752983469927,-666.31,0.00019616,2]
[373393655,1752983469937,-480.0,0.00019616,2]
[373393656,1752983469946,-564.81,0.00019616,2]
[373393657,1752983469956,-480.0,0.00019616,2]
[373393658,1752983469967,-480.0,0.00019616,2]
[373393659,1752983469976,-480.0,0.00019616,2]
[373393660,1752983469987,-480.0,0.00019616,2]
[373393661,1752983469997,-998.92,0.00019616,2]
[373393662,1752983470007,-480.0,0.00019616,2]
[373393663,1752983470016,-1362.16,0.00019616,2]
[373393664,1752983470026,-480.0,0.00019616,2]
[373393665,1752983470035,-4150.67,0.00019616,2]
[373393666,1752983470044,-493.14896,0.00019616,2]
[373393667,1752983470054,-572.02,0.00019616,2]
[373393668,1752983470063,-480.0,0.00019616,2]
[373393669,1752983470073,-944.0,0.00019616,2]
[373393670,1752983470083,-480.0,0.00019616,2]
[373393671,1752983470092,-480.0,0.00019616,2]
[373393672,1752983470102,-480.0,0.00019616,2]
[373393673,1752983470111,-724.16,0.00019616,2]
[373393674,1752983470121,-258.65408214,0.00019616,2]
[373393675,1752983470131,-480.0,0.00019616,2]
[373393676,1752983470141,-604.60331579,0.00019616,2]
[373393677,1752983470151,-480.0,0.00019616,2]
[373393678,1752983470160,-598.27,0.00019616,2]
[373393679,1752983470170,-2786.78,0.00019616,2]
[373393680,1752983470180,-1995.87,0.00019616,2]
[373393681,1752983470190,-2932.88,0.00019616,2]
[373393682,1752983470201,-492.28,0.00019616,2]
[373393683,1752983470210,-1466.09,0.00019616,2]
[373393684,1752983470220,-480.0,0.00019616,2]
[373393685,1752983470229,-2112.79,0.00019616,2]
[373393686,1752983470239,-744.22,0.00019616,2]
[373393687,1752983470249,-620.4,0.00019616,2]
[373393688,1752983470258,-25668.77,0.00019616,2]
[373393689,1752983470268,-1176.16,0.00019616,2]
[373393690,1752983470278,-2179.52,0.00019616,2]
[373393691,1752983470287,-1586.62,0.00019616,2]
[373393692,1752983470297,-1189.06,0.00019616,2]
[373393693,1752983470307,-1511.3,0.00019616,2]
[373393694,1752983470316,-480.0,0.00019616,2]
[373393695,1752983470326,-480.0,0.00019616,2]
[373393696,1752983470336,-480.0,0.00019616,2]
[373393697,1752983470345,-2984.78,0.00019616,2]
[373393698,1752983470355,-1000.0,0.00019616,2]
[373393699,1752983470364,-522.02910293,0.00019616,2]
[373393700,1752983470374,-2090.67,0.00019616,2]
[373393701,1752983470384,-480.0,0.00019616,2]
[373393702,1752983470394,-561.29,0.00019616,2]
[373393703,1752983470403,-508.18,0.00019616,2]
[373393704,1752983470412,-480.0,0.00019616,2]
[373393705,1752983470422,-1108.76,0.00019616,2]
[373393706,1752983470432,-1074.07,0.00019616,2]
[373393707,1752983470442,-599.06,0.00019616,2]
[373393708,1752983470452,-594.66,0.00019616,2]
[373393709,1752983470461,-480.0,0.00019616,2]
[373393710,1752983470471,-480.0,0.00019616,2]
[373393711,1752983470480,-677.5,0.00019616,2]
[373393712,1752983470489,-1173.26,0.00019616,2]
[373393713,1752983470498,-480.0,0.00019616,2]
[373393714,1752983470508,-480.0,0.00019616,2]
[373393715,1752983470518,-1092.95,0.00019616,2]
[373393716,1752983470527,-480.0,0.00019616,2]
[373393717,1752983470536,-554.23,0.00019616,2]
[373393718,1752983470546,-1196.13,0.00019616,2]
[373393719,1752983470555,-480.0,0.00019616,2]
[373393720,1752983470565,-2022.45,0.00019616,2]
[373393721,1752983470576,-480.0,0.00019616,2]
[373393722,1752983470585,-1063.23,0.00019616,2]
[373393723,1752983470595,-480.0,0.00019616,2]
[373393724,1752983470606,-480.0,0.00019616,2]
[373393725,1752983470616,-1415.84,0.00019616,2]
[373393726,1752983470626,-636.97,0.00019616,2]
[373393727,1752983470635,-480.0,0.00019616,2]
[373393728,1752983470645,-515.97302246,0.00019616,2]
[373393729,1752983470655,-963.4,0.00019616,2]
[373393730,1752983470665,-1525.7,0.00019616,2]
[373393731,1752983470675,-1895.08,0.00019616,2]
[373393732,1752983470684,-480.0,0.00019616,2]
[373393733,1752983470694,-1610.82,0.00019616,2]
[373393734,1752983470703,-1215.54,0.00019616,2]
[373393735,1752983470713,-480.0,0.00019616,2]
[373393736,1752983470722,-824.3,0.00019616,2]
[373393737,1752983470732,-1097.31,0.00019616,2]
[373393738,1752983470741,-1533.87,0.00019616,2]
[373393739,1752983470751,-2871.0,0.00019616,2]
[373393740,1752983470762,-574.78,0.00019616,2]
[373393741,1752983470772,-658.86,0.00019616,2]
[373393742,1752983470782,-480.0,0.00019616,2]
[373393743,1752983470791,-480.0,0.00019616,2]
[373393744,1752983470801,-779.13,0.00019616,2]
[373393745,1752983470810,-480.0,0.00019616,2]
[373393746,1752983470820,-715.66,0.00019616,2]
[373393747,1752983470830,-1144.05,0.00019616,2]
[373393748,1752983470840,-480.0,0.00019616,2]
[373393749,1752983470849,-480.0,0.00019616,2]
[373393750,1752983470860,-480.0,0.00019616,2]
[373393751,1752983470869,-2201.2,0.00019616,2]
[373393752,1752983470880,-480.0,0.00019616,2]
[373393753,1752983470889,-480.0,0.00019616,2]
[373393754,1752983470899,-808.57,0.00019616,2]
[373393755,1752983470909,-801.49,0.00019616,2]
[373393756,1752983470919,-698.78,0.00019616,2]
[373393757,1752983470935,-1015.45,0.00019616,2]
[373393758,1752983470945,-480.0,0.00019616,2]
[373393759,1752983470955,-735.6,0.00019616,2]
[373393760,1752983470965,-687.01,0.00019616,2]
[373393761,1752983470975,-744.84,0.00019616,2]
[373393762,1752983470984,-1347.49,0.00019616,2]
[373393763,1752983470994,-1419.47,0.00019616,2]
[373393764,1752983471005,-558.96,0.00019616,2]
[373393765,1752983471021,-767.14,0.00019616,2]
[373393766,1752983471031,-1138.92,0.00019616,2]
[373393767,1752983471041,-2980.46,0.00019616,2]
[373393768,1752983471051,-480.0,0.00019616,2]
[373393769,1752983471061,-2554.58,0.00019616,2]
[373393770,1752983471070,-480.0,0.00019616,2]
[373393771,1752983471085,-5450.5,0.00019616,2]
[373393772,1752983471102,-1452.34,0.00019616,2]
[373393773,1752983471112,-480.0,0.00019616,2]
[373393774,1752983471122,-963.43,0.00019616,2]
[373393775,1752983471133,-480.0,0.00019616,2]
[373393776,1752983471143,-522.13,0.00019616,2]
[373393777,1752983471152,-560.16,0.00019616,2]
[373393778,1752983471163,-871.9,0.00019616,2]
[373393779,1752983471173,-5052.22,0.00019616,2]
[373393780,1752983471183,-480.0,0.00019616,2]
[373393781,1752983471193,-480.0,0.00019616,2]
[373393782,1752983471204,-3565.47,0.00019616,2]
[373393783,1752983471213,-754.49,0.00019616,2]
[373393784,1752983471223,-2105.48,0.00019616,2]
[373393785,1752983471233,-480.0,0.00019616,2]
[373393786,1752983471243,-1124.66,0.00019616,2]
[373393787,1752983471253,-1024.27,0.00019616,2]
[373393788,1752983471263,-480.0,0.00019616,2]
[373393789,1752983471272,-480.0,0.00019616,2]
[373393790,1752983471282,-1090.09,0.00019616,2]
[373393791,1752983471292,-480.0,0.00019616,2]
[373393792,1752983471302,-480.0,0.00019616,2]
[373393793,1752983471311,-480.0,0.00019616,2]
[373393794,1752983471322,-1611.77,0.00019616,2]
[373393795,1752983471331,-962.24,0.00019616,2]
[373393796,1752983471341,-981.4,0.00019616,2]
[373393797,1752983471351,-574.47,0.00019616,2]
[373393798,1752983471362,-1356.81,0.00019616,2]
[373393799,1752983471371,-480.0,0.00019616,2]
[373393800,1752983471381,-546.15,0.00019616,2]
[373393801,1752983471391,-3984.36,0.00019616,2]
[373393802,1752983471401,-480.0,0.00019616,2]
[373393803,1752983471410,-480.0,0.00019616,2]
[373393804,1752983471420,-480.0,0.00019616,2]
[373393805,1752983471431,-926.3,0.00019616,2]
[373393806,1752983471442,-1367.25,0.00019616,2]
[373393807,1752983471452,-6148.42,0.00019616,2]
[373393808,1752983471462,-737.19,0.00019616,2]
[373393809,1752983471472,-2405.36,0.00019616,2]
[373393810,1752983471483,-719.9,0.00019616,2]
[373393811,1752983471493,-480.0,0.00019616,2]
[373393812,1752983471503,-480.0,0.00019616,2]
[373393813,1752983471513,-1466.72,0.00019616,2]
[373393814,1752983471523,-480.0,0.00019616,2]
[373393815,1752983471533,-2248.06,0.00019616,2]
[373393816,1752983471543,-2361.41,0.00019616,2]
[373393817,1752983471553,-588.73,0.00019616,2]
[373393818,1752983471563,-1192.49,0.00019616,2]
[373393819,1752983471573,-634.94,0.00019616,2]
[373393820,1752983471583,-4793.06,0.00019616,2]
[373393821,1752983471592,-9577.74,0.00019616,2]
[373393822,1752983471602,-518.42,0.00019616,2]
[373393823,1752983471613,-1250.81,0.00019616,2]
[373393824,1752983471623,-480.0,0.00019616,2]
[373393825,1752983471634,-1405.91,0.00019616,2]
[373393826,1752983471645,-480.0,0.00019616,2]
[373393827,1752983471655,-480.0,0.00019616,2]
[373393828,1752983471665,-1082.66,0.00019616,2]
[373393829,1752983471674,-480.0,0.00019616,2]
[373393830,1752983471684,-480.0,0.00019616,2]
[373393831,1752983471694,-480.0,0.00019616,2]
[373393832,1752983471704,-1036.03,0.00019616,2]
[373393833,1752983471713,-526.0,0.00019616,2]
[373393834,1752983471723,-786.35,0.00019616,2]
[373393835,1752983471733,-480.0,0.00019616,2]
[373393836,1752983471742,-514.43,0.00019616,2]
[373393837,1752983471752,-1678.83,0.00019616,2]
[373393838,1752983471762,-1121.35,0.00019616,2]
[373393839,1752983471781,-831.0,0.00019616,2]
[373393840,1752983471790,-480.0,0.00019616,2]
[373393841,1752983471801,-773.36,0.00019616,2]
[373393842,1752983471811,-718.25,0.00019616,2]
[373393843,1752983471821,-805.94,0.00019616,2]
[373393844,1752983471832,-763.26,0.00019616,2]
[373393845,1752983471841,-601.17,0.00019616,2]
[373393846,1752983471851,-665.29,0.00019616,2]
[373393847,1752983471861,-480.0,0.00019616,2]
[373393848,1752983471871,-480.0,0.00019616,2]
[373393849,1752983471881,-480.0,0.00019616,2]
[373393850,1752983471892,-1187.59,0.00019616,2]
[373393851,1752983471903,-3301.21,0.00019616,2]
[373393852,1752983471913,-480.0,0.00019616,2]
[373393853,1752983471925,-480.0,0.00019616,2]
[373393854,1752983471935,-480.0,0.00019616,2]
[373393855,1752983471945,-821.65,0.00019616,2]
[373393856,1752983471956,-1685.67,0.00019616,2]
[373393857,1752983471967,-4076.0,0.00019616,2]
[373393858,1752983471977,-3695.88,0.00019616,2]
[373393859,1752983471986,-731.19,0.00019616,2]
[373393860,1752983471997,-1374.67,0.00019616,2]
[373393861,1752983472007,-670.23,0.00019616,2]
[373393862,1752983472018,-480.0,0.00019616,2]
[373393863,1752983472029,-480.0,0.00019616,2]
[373393864,1752983472040,-1193.89,0.00019616,2]
[373393865,1752983472049,-1796.15,0.00019616,2]
[373393866,1752983472059,-1151.96,0.00019616,2]
[373393867,1752983472069,-850.76,0.00019616,2]
[373393868,1752983472293,-480.0,0.00019616,2]
[373393869,1752983472303,-480.0,0.00019616,2]
[373393870,1752983472313,-480.0,0.00019616,2]
[373393871,1752983472323,-1267.3,0.00019616,2]
[373393872,1752983472333,-1053.53,0.00019616,2]
[373393873,1752983472342,-536.82,0.00019616,2]
[373393874,1752983472352,-168.0,0.00019624,2]
[373393875,1752983472362,-2665.17445914,0.00019626,2]
[373393876,1752983472372,-150.0,0.00019632,2]
[373393877,1752983472382,-208.0,0.0001964,2]
[373393878,1752983472391,-392.92115914,0.00019659,2]
[373393879,1752983472401,-501.08281634,0.00019673,2]
[373393880,1752983472411,-500.96248247,0.00019673,2]
[373393881,1752983472420,-434.54822318,0.00019673,2]
[373393882,1752983472429,-500.0,0.00019673,2]
[373393883,1752983472440,-168.0,0.00019681,2]
[373393884,1752983472451,-1262.02,0.000197,2]
[373393885,1752983472460,-168.0,0.00019711,2]
[373393886,1752983472470,-503.82690168,0.00019721,2]
[373393887,1752983472480,-1000.0,0.00019721,2]
[373393888,1752983472490,-1000.0,0.00019721,2]
[373393889,1752983472499,-500.0,0.00019721,2]
[373393890,1752983472509,-1002.0721641,0.00019721,2]
[373393891,1752983472520,-759.79,0.00019725,2]
[373393892,1752983472530,-759.79,0.00019725,2]
[373393893,1752983472540,-620.49,0.00019725,2]
[373393894,1752983472550,-620.49,0.00019725,2]
[373393895,1752983472559,-770.66,0.00019725,2]
[373393896,1752983472568,-770.66,0.00019725,2]
[373393897,1752983472578,-150.0,0.00019726,2]
[373393898,1752983472587,-604.58324751,0.00019726,2]
[373393899,1752983472596,-150.0,0.00019726,2]
[373393900,1752983472606,-500.0,0.00019726,2]
[373393901,1752983472615,-500.0,0.00019726,2]
[373393902,1752983472625,-251.53707094,0.00019726,2]
[373393903,1752983472634,-500.0,0.00019726,2]
[373393904,1752983472644,-200.0,0.00019726,2]
[373393905,1752983472653,-622.0,0.00019726,2]
[373393906,1752983472662,-505.47145301,0.00019726,2]
[373393907,1752983472672,-500.0,0.00019726,2]
[373393908,1752983472681,-500.0,0.00019726,2]
[373393909,1752983472695,-200.0,0.00019726,2]
[373393910,1752983472705,-150.0,0.00019726,2]
[373393911,1752983472714,-251.65873712,0.00019726,2]
[373393912,1752983472723,-308.35873298,0.00019726,2]
[373393913,1752983472733,-150.0,0.00019726,2]
[373393914,1752983472743,-2392.0,0.00019726,2]
[373393915,1752983472752,-605.07044561,0.00019726,2]
[373393916,1752983472762,-500.0,0.00019726,2]
[373393917,1752983472771,-2176.0,0.00019726,2]
[373393918,1752983472781,-500.0,0.00019726,2]
[373393919,1752983472792,-155.21517026,0.00019726,2]
[373393920,1752983472802,-500.0,0.00019726,2]
[373393921,1752983472814,-500.0,0.00019726,2]
[373393922,1752983472830,-500.0,0.00019726,2]
[373393923,1752983472846,-500.0,0.00019726,2]
[373393924,1752983472856,-1149.0,0.00019726,2]
[373393925,1752983472866,-405.909386,0.00019726,2]
[373393926,1752983472875,-347.586308,0.00019726,2]
[373393927,1752983472885,-524.535421,0.00019726,2]
[373393928,1752983472894,-153.663042,0.00019726,2]
[373393929,1752983472904,-480.0,0.00019726,2]
[373393930,1752983472914,-480.0,0.00019726,2]
[373393931,1752983472926,-480.0,0.00019726,2]
[373393932,1752983472935,-480.0,0.00019726,2]
[373393933,1752983472946,-460.66948872,0.00019726,2]
[373393934,1752983472955,-480.0,0.00019726,2]
[373393935,1752983472966,-480.0,0.00019726,2]
[373393936,1752983472975,-480.0,0.00019726,2]
[373393937,1752983472985,-480.0,0.00019726,2]
[373393938,1752983472995,-480.0,0.00019726,2]
[373393939,1752983473006,-352.54473431,0.00019726,2]
[373393940,1752983473016,-480.0,0.00019726,2]
[373393941,1752983473025,-480.0,0.00019726,2]
[373393942,1752983473035,-480.0,0.00019726,2]
[373393943,1752983473044,-480.0,0.00019726,2]
[373393944,1752983473054,-480.0,0.00019726,2]
[373393945,1752983473063,-480.0,0.00019726,2]
[373393946,1752983473073,-480.0,0.00019726,2]
[373393947,1752983473082,-488.57,0.00019726,2]
[373393948,1752983473092,-526.79,0.00019726,2]
[373393949,1752983473102,-500.0,0.00019726,2]
[373393950,1752983473112,-480.0,0.00019726,2]
[373393951,1752983473122,-480.0,0.00019726,2]
[373393952,1752983473131,-480.0,0.00019726,2]
[373393953,1752983473141,-652.55,0.00019726,2]
[373393954,1752983473151,-480.0,0.00019726,2]
[373393955,1752983473160,-480.0,0.00019726,2]
[373393956,1752983473169,-480.0,0.00019726,2]
[373393957,1752983473179,-480.0,0.00019726,2]
[373393958,1752983473188,-480.0,0.00019726,2]
[373393959,1752983473198,-480.0,0.00019726,2]
[373393960,1752983473208,-496.94,0.00019726,2]
[373393961,1752983473217,-480.0,0.00019726,2]
[373393962,1752983473226,-480.0,0.00019726,2]
[373393963,1752983473236,-480.0,0.00019726,2]
[373393964,1752983473245,-480.0,0.00019726,2]
[373393965,1752983473255,-800.28,0.00019726,2]
[373393966,1752983473264,-480.0,0.00019726,2]
[373393967,1752983473274,-678.96,0.00019726,2]
[373393968,1752983473283,-497.02,0.00019726,2]
[373393969,1752983473293,-480.0,0.00019726,2]
[373393970,1752983473302,-480.0,0.00019726,2]
[373393971,1752983473311,-480.0,0.00019726,2]
[373393972,1752983473321,-621.54,0.00019726,2]
[373393973,1752983473331,-480.0,0.00019726,2]
[373393974,1752983473340,-249.05124501,0.00019726,2]
[373393975,1752983473350,-480.0,0.00019726,2]
[373393976,1752983473360,-480.0,0.00019726,2]
[373393977,1752983473369,-480.0,0.00019726,2]
[373393978,1752983473379,-480.0,0.00019726,2]
[373393979,1752983473388,-596.67,0.00019726,2]
[373393980,1752983473398,-602.0,0.00019726,2]
[373393981,1752983473407,-503.32763188,0.00019726,2]
[373393982,1752983473417,-480.0,0.00019726,2]
[373393983,1752983473427,-570.86,0.00019726,2]
[373393984,1752983473436,-480.0,0.00019726,2]
[373393985,1752983473447,-500.41,0.00019726,2]
[373393986,1752983473457,-480.0,0.00019726,2]
[373393987,1752983473467,-480.0,0.00019726,2]
[373393988,1752983473476,-3264.72,0.00019726,2]
[373393989,1752983473486,-480.0,0.00019726,2]
[373393990,1752983473496,-838.65,0.00019726,2]
[373393991,1752983473510,-709.89,0.00019726,2]
[373393992,1752983473519,-713.6,0.00019726,2]
[373393993,1752983473529,-480.0,0.00019726,2]
[373393994,1752983473538,-480.0,0.00019726,2]
[373393995,1752983473551,-894.47,0.00019726,2]
[373393996,1752983473561,-480.0,0.00019726,2]
[373393997,1752983473570,-691.65,0.00019726,2]
[373393998,1752983473580,-480.0,0.00019726,2]
[373393999,1752983473589,-480.0,0.00019726,2]
[373394000,1752983473599,-480.0,0.00019726,2]
[373394001,1752983473609,-480.0,0.00019726,2]
[373394002,1752983473620,-480.0,0.00019726,2]
[373394003,1752983473629,-480.0,0.00019726,2]
[373394004,1752983473638,-480.0,0.00019726,2]
[373394005,1752983473647,-480.0,0.00019726,2]
[373394006,1752983473657,-480.0,0.00019726,2]
[373394007,1752983473667,-511.78,0.00019726,2]
[373394008,1752983473676,-480.0,0.00019726,2]
[373394009,1752983473685,-480.0,0.00019726,2]
[373394010,1752983473697,-480.0,0.00019726,2]
[373394011,1752983473706,-480.0,0.00019726,2]
[373394012,1752983473716,-480.0,0.00019726,2]
[373394013,1752983473725,-481.61,0.00019726,2]
[373394014,1752983473734,-306.72766791,0.00019726,2]
[373394015,1752983473743,-1456.33,0.00019726,2]
[373394016,1752983473752,-577.39,0.00019726,2]
[373394017,1752983473762,-480.0,0.00019726,2]
[373394018,1752983473771,-569.49,0.00019726,2]
[373394019,1752983473780,-480.0,0.00019726,2]
[373394020,1752983473790,-595.95606244,0.00019726,2]
[373394021,1752983473799,-480.0,0.00019726,2]
[373394022,1752983473808,-480.0,0.00019726,2]
[373394023,1752983473818,-495.68,0.00019726,2]
[373394024,1752983473828,-480.0,0.00019726,2]
[373394025,1752983473838,-480.0,0.00019726,2]
[373394026,1752983473847,-480.0,0.00019726,2]
[373394027,1752983473856,-480.0,0.00019726,2]
[373394028,1752983473866,-480.0,0.00019726,2]
[373394029,1752983473875,-480.0,0.00019726,2]
[373394030,1752983473885,-480.0,0.00019726,2]
[373394031,1752983473894,-480.0,0.00019726,2]
[373394032,1752983473904,-1715.52,0.00019726,2]
[373394033,1752983473915,-877.24,0.00019726,2]
[373394034,1752983473928,-480.0,0.00019726,2]
[373394035,1752983473938,-480.0,0.00019726,2]
[373394036,1752983473947,-480.0,0.00019726,2]
[373394037,1752983473956,-480.0,0.00019726,2]
[373394038,1752983473967,-480.0,0.00019726,2]
[373394039,1752983473979,-480.0,0.00019726,2]
[373394040,1752983473988,-480.0,0.00019726,2]
[373394041,1752983474000,-749.25,0.00019726,2]
[373394042,1752983474010,-480.0,0.00019726,2]
[373394043,1752983474021,-480.0,0.00019726,2]
[373394044,1752983474032,-480.0,0.00019726,2]